fUSD/lending_fUSD_20260402
["ID","MTS","AMOUNT","RATE_DAILY","PERIOD"]
[419315596,1775152243338,-500.0,0.00015243,2]
[419315597,1775152243347,-500.68484421,0.00015243,2]
[419315598,1775152243357,-500.0,0.00015243,2]
[419315599,1775152243367,-500.0,0.00015243,2]
[419315600,1775152243377,-500.0,0.00015243,2]
[419315601,1775152243388,-2500.0,0.00015252,2]
[419315602,1775152243397,-500.0,0.00015274,2]
[419315603,1775152243406,-500.0,0.00015274,2]
[419315604,1775152243416,-502.25926533,0.00015274,2]
[419315605,1775152243425,-185.009498,0.00015341,7]
[419315606,1775152243434,-160.0,0.00015341,7]
[419315607,1775152243444,-388.054426,0.00015341,7]
[419315608,1775152243453,-616.108853,0.00015341,7]
[419315609,1775152243463,-887.84,0.00015342,2]
[419315610,1775152243473,-880.73,0.00015342,2]
[419315611,1775152243482,-1000.0,0.00015379,2]
[419315612,1775152243492,-1000.0,0.00015379,2]
[419315613,1775152243502,-246.472,0.00015379,2]
[419315614,1775152243512,-219.00096718,0.00015389,2]
[419315615,1775152243522,-536.71181523,0.00015389,2]
[419315616,1775152243531,-150.0,0.00015467,2]
[419315617,1775152243541,-500.0,0.00015479,2]
[419315618,1775152243550,-274.338782,0.00015484,7]
[419315619,1775152243561,-4000.0,0.00015507,2]
[419315620,1775152243570,-446.837664,0.00015513,7]
[419315621,1775152243580,-435.89138838,0.00015547,3]
[419315622,1775152243590,-1536.04360649,0.00015554,2]
[419315623,1775152243600,-200.0,0.00015554,2]
[419315624,1775152243610,-187.78006525,0.00015554,2]
[419315625,1775152243620,-799.54513345,0.00015554,2]
[419315626,1775152243629,-887.8791124,0.00015616,2]
[419315627,1775152243639,-47659.39346333,0.00015654,2]
[419315628,1775152243649,-2400.0,0.000157,5]
[419315629,1775152243658,-1117.94056695,0.00015712,2]
[419315630,1775152243669,-2285.0,0.00015737,5]
[419315631,1775152243678,-2363.0,0.00015737,5]
[419315632,1775152243688,-2095.52,0.00015753,2]
[419315633,1775152243698,-350.0,0.00015778,2]
[419315634,1775152243707,-1011.5547996,0.00015791,2]
[419315635,1775152243717,-1000.0,0.00015791,2]
[419315636,1775152243726,-263.24916206,0.00015791,2]
[419315637,1775152243737,-1000.0,0.00015791,2]
[419315638,1775152243747,-503.62269392,0.000158,2]
[419315639,1775152243762,-150.31858386,0.000158,2]
[419315640,1775152243772,-4900.0,0.000158,5]
[419315641,1775152243781,-1000.0,0.00015822,2]
[419315642,1775152243791,-839.64282887,0.00015822,2]
[419315643,1775152243801,-500.0,0.00015829,2]
[419315644,1775152243811,-24984.01404667,0.0001583,2]
[419315645,1775152243820,-2000.0,0.0001584,2]
[419315646,1775152243830,-2000.0,0.0001584,2]
[419315647,1775152243839,-2000.0,0.0001584,2]
[419315648,1775152243850,-160.0,0.00015861,2]
[419315649,1775152243859,-200.0,0.00015867,2]
[419315650,1775152243869,-4000.0,0.00015895,2]
[419315651,1775152243879,-273.4396,0.000159,2]
[419315652,1775152243888,-306.0,0.000159,2]
[419315653,1775152243898,-7300.0,0.000159,5]
[419315654,1775152243908,-313.0,0.000159,2]
[419315655,1775152243918,-207.3838031,0.000159,2]
[419315656,1775152243928,-4476.77300706,0.000159,2]
[419315657,1775152243938,-4821.11902036,0.000159,2]
[419315658,1775152243948,-1218.90096191,0.000159,2]
[419315659,1775152243959,-1528.46271437,0.00015901,2]
[419315660,1775152243969,-154.78244338,0.00015928,2]
[419315661,1775152243979,-1600.0,0.00015936,2]
[419315662,1775152243989,-2000.0,0.00015936,2]
[419315664,1775152243999,-11404.3014046,0.00015947,2]
[419315666,1775152244009,-162.581846,0.00015947,2]
[419315668,1775152244019,-35501.5955915,0.00015947,2]
[419315670,1775152244028,-154.87126,0.00015947,2]
[419315672,1775152244037,-3350.2401296,0.00015947,2]
[419315674,1775152244046,-500.0,0.00015973,2]
[419315676,1775152244056,-165.49145903,0.00015973,2]
[419315677,1775152244065,-500.0,0.00015973,2]
[419315679,1775152244074,-500.0,0.00015973,2]
[419315681,1775152244083,-502.59758452,0.00015973,2]
[419315683,1775152244092,-384.73655496,0.00015973,2]
[419315685,1775152244102,-500.0,0.00015973,2]
[419315687,1775152244111,-500.0,0.00015973,2]
[419315689,1775152244120,-500.0,0.00015973,2]
[419315691,1775152244130,-500.0,0.00015973,2]
[419315693,1775152244139,-500.0,0.00015973,2]
[419315696,1775152244150,-500.0,0.00015973,2]
[419315698,1775152244160,-500.0,0.00015973,2]
[419315700,1775152244171,-500.0,0.00015973,2]
[419315702,1775152244181,-500.0,0.00015973,2]
[419315704,1775152244190,-500.0,0.00015973,2]
[419315706,1775152244199,-500.0,0.00015973,2]
[419315707,1775152244209,-500.0,0.00015973,2]
[419315709,1775152244220,-500.0,0.00015973,2]
[419315712,1775152244230,-500.0,0.00015973,2]
[419315714,1775152244239,-500.0,0.00015973,2]
[419315716,1775152244248,-500.0,0.00015973,2]
[419315718,1775152244258,-500.0,0.00015973,2]
[419315720,1775152244269,-359.66331739,0.00015973,2]
[419315722,1775152244278,-500.0,0.00015988,2]
[419315724,1775152244288,-500.0,0.00015988,2]
[419315726,1775152244297,-500.0,0.00015988,2]
[419315728,1775152244306,-500.0,0.00015988,2]
[419315730,1775152244315,-158.0,0.00015989,3]
[419315732,1775152244324,-168.0,0.00015989,3]
[419315734,1775152244333,-200.0,0.00015989,2]
[419315736,1775152244342,-482.13200489,0.00015989,2]
[419315738,1775152244352,-151.0,0.00015997,2]
[419315740,1775152244361,-151.0,0.00015997,2]
[419315742,1775152244371,-151.0,0.00015997,2]
[419315743,1775152244380,-151.0,0.00015997,2]
[419315745,1775152244390,-666.0,0.00015999,2]
[419315747,1775152244399,-155.0,0.00015999,2]
[419315749,1775152244409,-500.0,0.00015999,2]
[419315751,1775152244418,-500.0,0.00015999,2]
[419315753,1775152244428,-500.0,0.00015999,2]
[419315755,1775152244438,-500.0,0.00015999,2]
[419315757,1775152244447,-500.0,0.00015999,2]
[419315759,1775152244457,-500.0,0.00015999,2]
[419315761,1775152244467,-500.0,0.00015999,2]
[419315763,1775152244477,-500.0,0.00015999,2]
[419315765,1775152244488,-500.0,0.00015999,2]
[419315767,1775152244498,-500.0,0.00015999,2]
[419315769,1775152244507,-500.0,0.00015999,2]
[419315771,1775152244518,-500.0,0.00015999,2]
[419315773,1775152244528,-500.0,0.00015999,2]
[419315775,1775152244537,-500.0,0.00015999,2]
[419315777,1775152244547,-500.0,0.00015999,2]
[419315779,1775152244557,-500.0,0.00015999,2]
[419315781,1775152244566,-500.0,0.00015999,2]
[419315783,1775152244576,-500.0,0.00015999,2]
[419315785,1775152244585,-163.1276187,0.00015999,2]
[419315787,1775152244595,-500.0,0.00015999,2]
[419315789,1775152244604,-500.0,0.00015999,2]
[419315791,1775152244614,-500.0,0.00015999,2]
[419315792,1775152244623,-500.0,0.00015999,2]
[419315793,1775152244633,-500.0,0.00015999,2]
[419315794,1775152244643,-500.0,0.00015999,2]
[419315795,1775152244653,-433.75,0.00015999,2]
[419315796,1775152244664,-529.28576111,0.00015999,2]
[419315797,1775152244674,-500.0,0.00015999,2]
[419315798,1775152244683,-500.0,0.00015999,2]
[419315799,1775152244693,-500.0,0.00015999,2]
[419315800,1775152244703,-500.0,0.00015999,2]
[419315801,1775152244714,-500.0,0.00015999,2]
[419315802,1775152244723,-500.0,0.00015999,2]
[419315803,1775152244733,-500.0,0.00015999,2]
[419315804,1775152244742,-500.0,0.00015999,2]
[419315805,1775152244752,-500.0,0.00015999,2]
[419315806,1775152244762,-500.0,0.00015999,2]
[419315807,1775152244772,-500.0,0.00015999,2]
[419315808,1775152244781,-500.0,0.00015999,2]
[419315809,1775152244791,-500.0,0.00015999,2]
[419315810,1775152244801,-500.0,0.00015999,2]
[419315811,1775152244811,-500.0,0.00015999,2]
[419315812,1775152244820,-500.0,0.00015999,2]
[419315813,1775152244830,-500.0,0.00015999,2]
[419315814,1775152244839,-500.0,0.00015999,2]
[419315815,1775152244849,-500.0,0.00015999,2]
[419315816,1775152244859,-500.0,0.00015999,2]
[419315817,1775152244868,-150.0,0.00016,2]
[419315818,1775152244877,-150.0,0.00016,2]
[419315819,1775152244887,-150.0,0.00016,2]
[419315820,1775152244896,-245.82237456,0.00016,2]
[419315821,1775152244905,-150.0,0.00016,2]
[419315822,1775152244915,-150.0,0.00016,2]
[419315823,1775152244925,-284839.41118288,0.00016,2]
[419315824,1775152244935,-49710.71707684,0.00016,2]
[419315825,1775152244964,-558.6817177,0.00016,2]
[419315826,1775152245117,-1313.22697025,0.00014048,2]
[419315827,1775152245127,-40987.27302975,0.00016,2]
[419315828,1775152245147,-796.15760639,0.00016,2]
[419315829,1775152245160,-194785.9858122,0.00016,2]
[419315832,1775152245927,-2667.88970174,0.00016,2]
[419315852,1775152246356,-475.43014339,0.00016,2]
[419315853,1775152246690,-214.1516945,0.00013699,2]
[419315854,1775152246699,-1021.0483055,0.000157,2]
[419315855,1775152246715,-292.17866475,0.000157,2]
[419315856,1775152246724,-52980.35302045,0.00016,2]
[419315857,1775152246765,-281.32,0.00016,2]
[419315858,1775152246776,-258.9,0.00016,2]
[419315859,1775152246798,-549.74487618,0.00016,2]
[419315881,1775152247032,-87223.38925024,0.00016,2]
[419315898,1775152247174,-1339.76704607,0.00016,2]
[419315900,1775152247186,-424.45967106,0.00016,2]
[419316237,1775153432335,-291.95062242,9.499e-05,2]
[419316238,1775153432346,-500.0,9.499e-05,2]
[419316239,1775153432359,-500.0,9.499e-05,2]
[419316240,1775153432369,-500.0,9.499e-05,2]
[419316241,1775153432379,-500.0,9.499e-05,2]
[419316242,1775153432388,-500.0,9.499e-05,2]
[419316243,1775153432398,-500.0,9.499e-05,2]
[419316244,1775153432407,-500.0,9.499e-05,2]
[419316245,1775153432417,-194.91175021,9.499e-05,2]
[419316246,1775153432428,-500.0,9.499e-05,2]
[419316247,1775153432438,-500.0,9.499e-05,2]
[419316248,1775153432448,-500.0,9.499e-05,2]
[419316249,1775153432458,-101221.43519762,9.5e-05,3]
[419316250,1775153432471,-687.0,9.5e-05,3]
[419316251,1775153432526,-1109.24731293,9.5e-05,3]
[419316252,1775153432539,-26511.17825112,9.5e-05,3]
[419316253,1775153432571,-601.2627983,9.5e-05,3]
[419316254,1775153432586,-1421.96416629,9.5e-05,3]
[419316255,1775153432598,-8045.54526625,9.5e-05,3]
[419316256,1775153432611,-2746.567596,9.5e-05,3]
[419316257,1775153432623,-4585.70370737,9.5e-05,3]
[419316258,1775153432662,-3383.42896817,9.5e-05,3]
[419316259,1775153432673,-2345.09447237,9.5e-05,3]
[419316260,1775153432766,-420.0,9.5e-05,3]
[419316262,1775153432779,-7393.85317137,9.5e-05,3]
[419316263,1775153432798,-34685.37229861,9.5e-05,3]
[419316264,1775153438431,-838.73048206,9.5e-05,3]
[419316265,1775153438443,-9561.50740717,9.5e-05,3]
[419316266,1775153438454,-4043.8467716,9.5e-05,3]
[419316267,1775153438467,-339.88265974,9.5e-05,3]
[419316268,1775153438482,-431.92357442,9.5e-05,3]
[419316269,1775153438514,-2780.68476228,9.5e-05,3]
[419316270,1775153438525,-1736.62632133,9.5e-05,3]
[419316271,1775153438793,-310.85665551,9.5e-05,3]
[419316272,1775153438827,-966.64371,9.5e-05,3]
[419316273,1775153438839,-10915.79728157,9.5e-05,3]
[419316274,1775153438850,-6275.55825757,9.5e-05,3]
[419316275,1775153438865,-467.4334257,9.5e-05,3]
[419316276,1775153438877,-330.95,9.5e-05,3]
[419316284,1775153441008,-550.0,9.5e-05,3]
[419316285,1775153441019,-195979.48298973,9.5e-05,3]
[419316286,1775153441028,-338.88,0.00011507,2]
[419316287,1775153441037,-1376.4494,0.00012399,2]
[419316288,1775153441047,-327.6848,0.00012418,2]
[419316289,1775153441056,-300.0,0.00012509,2]
[419316290,1775153441066,-1200.0,0.00012509,2]
[419316291,1775153441075,-151.0,0.0001251,2]
[419316292,1775153441084,-151.0,0.0001251,2]
[419316293,1775153441094,-151.0,0.0001251,2]
[419316294,1775153441103,-151.0,0.0001251,2]
[419316295,1775153441112,-151.0,0.0001251,2]
[419316296,1775153441121,-151.0,0.0001251,2]
[419316297,1775153441131,-151.0,0.0001251,2]
[419316298,1775153441140,-151.0,0.0001251,2]
[419316299,1775153441149,-30939.34,0.00012517,2]
[419316300,1775153441158,-150.0,0.00012657,2]
[419316301,1775153441168,-5000.0,0.00012658,2]
[419316302,1775153441177,-448.07422048,0.00012658,2]
[419316303,1775153441187,-195.0,0.00012658,2]
[419316304,1775153441197,-250.0,0.00013,2]
[419316305,1775153441206,-150.0,0.00013,2]
[419316306,1775153441216,-5388.91134172,0.0001305,2]
[419316307,1775153441226,-501.0,0.00013111,2]
[419316308,1775153441236,-505.0,0.00013111,2]
[419316309,1775153441245,-250.0,0.00013544,2]
[419316310,1775153441255,-7348.76,0.00013598,2]
[419316311,1775153441264,-1000.0,0.00013598,2]
[419316312,1775153441274,-161.12,0.00013657,2]
[419316313,1775153441284,-500.0,0.00013657,2]
[419316314,1775153441293,-1056.3664152,0.00013683,2]
[419316315,1775153441353,-5333.7835848,0.00013683,2]
[419316316,1775153441363,-500.0,0.00013698,2]
[419316317,1775153441373,-500.0,0.00013698,2]
[419316318,1775153441382,-500.0,0.00013698,2]
[419316319,1775153441391,-500.0,0.00013698,2]
[419316320,1775153441401,-500.0,0.00013698,2]
[419316321,1775153441410,-500.0,0.00013698,2]
[419316322,1775153441419,-500.0,0.00013698,2]
[419316323,1775153441429,-500.0,0.00013698,2]
[419316324,1775153441439,-150.0,0.00013699,2]
[419316325,1775153441449,-200.0,0.00013699,2]
[419316326,1775153441458,-200.85,0.00013699,2]
[419316327,1775153441468,-233.0,0.00013725,2]
[419316328,1775153441478,-210.15,0.00013748,2]
[419316329,1775153441487,-255.0,0.00013758,2]
[419316330,1775153441496,-1680.0,0.0001376,2]
[419316331,1775153441507,-611.77934941,0.00013852,2]
[419316332,1775153441516,-6210.69,0.00013973,2]
[419316333,1775153441526,-9601.90631203,0.00014006,2]
[419316335,1775153441536,-166.66,0.00014067,2]
[419316336,1775153441546,-500.0,0.0001425,2]
[419316338,1775153441556,-500.0,0.0001425,2]
[419316340,1775153441565,-501.4622297,0.0001425,2]
[419316342,1775153441575,-502.25926533,0.0001425,2]
[419316344,1775153441585,-500.0,0.0001425,2]
[419316346,1775153441594,-500.0,0.0001425,2]
[419316348,1775153441604,-500.0,0.0001425,2]
[419316350,1775153441614,-178.1672,0.000143,7]
[419316352,1775153441624,-273.9,0.00014307,2]
[419316354,1775153441633,-500.0,0.00014365,2]
[419316356,1775153441643,-1767.9,0.00014411,2]
[419316358,1775153441652,-396.61291239,0.00014458,2]
[419316360,1775153441662,-476.79585531,0.00014472,2]
[419316362,1775153441671,-161.12,0.00014511,2]
[419316363,1775153441681,-500.0,0.00014608,2]
[419316364,1775153441691,-500.0,0.00014617,2]
[419316365,1775153441700,-150.31858386,0.00014633,2]
[419316366,1775153441709,-10965.8899,0.00014644,2]
[419316367,1775153441718,-205.16,0.0001469,2]
[419316368,1775153441728,-1428.38747117,0.00014745,2]
[419316369,1775153441737,-200.0,0.00014745,2]
[419316370,1775153441746,-500.0,0.00014745,2]
[419316371,1775153441757,-500.0,0.00014745,2]
[419316372,1775153441766,-500.0,0.00014745,2]
[419316373,1775153441775,-500.0,0.00014745,2]
[419316374,1775153441784,-500.0,0.00014745,2]
[419316375,1775153441794,-500.0,0.00014745,2]
[419316376,1775153441803,-500.0,0.00014745,2]
[419316377,1775153441812,-500.0,0.00014745,2]
[419316378,1775153441822,-500.0,0.00014745,2]
[419316379,1775153441831,-500.0,0.00014745,2]
[419316380,1775153441841,-500.0,0.00014745,2]
[419316381,1775153441850,-500.0,0.00014745,2]
[419316383,1775153441860,-500.0,0.00014745,2]
[419316385,1775153441870,-500.0,0.00014745,2]
[419316387,1775153441879,-500.0,0.00014745,2]
[419316388,1775153441888,-500.0,0.00014745,2]
[419316389,1775153441898,-500.0,0.00014745,2]
[419316390,1775153441908,-500.0,0.00014745,2]
[419316391,1775153441918,-500.0,0.00014745,2]
[419316392,1775153441927,-9552.16786547,0.00014745,2]
[419316393,1775153441936,-500.0,0.00014745,2]
[419316394,1775153441946,-500.0,0.00014745,2]
[419316395,1775153441956,-500.0,0.00014745,2]
[419316396,1775153441966,-500.0,0.00014745,2]
[419316397,1775153441975,-151.0,0.00014745,2]
[419316398,1775153441985,-500.0,0.00014745,2]
[419316399,1775153441994,-174.61919141,0.00014745,2]
[419316400,1775153442004,-500.0,0.00014745,2]
[419316401,1775153442013,-500.0,0.00014745,2]
[419316402,1775153442022,-200.0,0.00014745,2]
[419316403,1775153442031,-500.0,0.00014745,2]
[419316404,1775153442041,-250.0,0.00014745,2]
[419316405,1775153442050,-500.0,0.00014745,2]
[419316406,1775153442059,-250.0,0.00014745,2]
[419316407,1775153442068,-500.0,0.00014745,2]
[419316408,1775153442077,-250.0,0.00014745,2]
[419316409,1775153442087,-500.0,0.00014745,2]
[419316410,1775153442096,-250.0,0.00014745,2]
[419316411,1775153442105,-500.0,0.00014745,2]
[419316412,1775153442114,-250.0,0.00014745,2]
[419316413,1775153442123,-500.0,0.00014745,2]
[419316414,1775153442133,-250.0,0.00014745,2]
[419316415,1775153442142,-500.0,0.00014745,2]
[419316416,1775153442152,-250.0,0.00014745,2]
[419316417,1775153442161,-500.0,0.00014745,2]
[419316418,1775153442171,-250.0,0.00014745,2]
[419316419,1775153442179,-250.0,0.00014745,2]
[419316420,1775153442189,-250.0,0.00014745,2]
[419316421,1775153442198,-250.0,0.00014745,2]
[419316422,1775153442208,-290.26104003,0.00014745,2]
[419316423,1775153442217,-170.0,0.00014745,2]
[419316424,1775153442226,-170.0,0.00014745,2]
[419316425,1775153442235,-170.0,0.00014745,2]
[419316426,1775153442244,-170.0,0.00014745,2]
[419316427,1775153442253,-170.0,0.00014745,2]
[419316428,1775153442263,-170.0,0.00014745,2]
[419316429,1775153442272,-170.0,0.00014745,2]
[419316430,1775153442281,-743.50770149,0.00014745,2]
[419316431,1775153442291,-170.0,0.00014745,2]
[419316432,1775153442300,-170.0,0.00014745,2]
[419316433,1775153442309,-170.0,0.00014745,2]
[419316434,1775153442318,-170.0,0.00014745,2]
[419316435,1775153442327,-500.0,0.00014764,2]
[419316436,1775153442336,-500.0,0.00014764,2]
[419316437,1775153442345,-839.64282887,0.00014798,2]
[419316438,1775153442355,-263.24916206,0.00014798,2]
[419316439,1775153442364,-1000.0,0.00014798,2]
[419316440,1775153442373,-1000.0,0.00014798,2]
[419316441,1775153442383,-1000.0,0.00014798,2]
[419316442,1775153442392,-500.0,0.000148,2]
[419316443,1775153442401,-9905.5980765,0.000148,2]
[419316444,1775153442410,-151.0,0.000148,2]
[419316445,1775153442420,-16910.12195052,0.0001481,2]
[419316446,1775153442429,-500.0,0.00014855,2]
[419316447,1775153442439,-10272.10520533,0.00014855,2]
[419316448,1775153442448,-151.0,0.00014855,2]
[419316449,1775153442457,-850.41,0.000149,2]
[419316450,1775153442467,-500.0,0.0001491,2]
[419316451,1775153442476,-10652.17309792,0.0001491,2]
[419316452,1775153442486,-151.0,0.0001491,2]
[419316453,1775153442495,-433.0,0.0001496,2]
[419316454,1775153442506,-500.0,0.00014965,2]
[419316455,1775153442515,-11046.30350255,0.00014965,2]
[419316456,1775153442525,-151.0,0.00014965,2]
[419316457,1775153442535,-529.27867338,0.00014982,2]
[419316458,1775153442545,-300.0,0.00015,2]
[419316459,1775153442554,-500.0,0.0001502,2]
[419316460,1775153442563,-4602.6267317,0.0001502,2]
[419316461,1775153442573,-151.0,0.0001502,2]
[419316462,1775153442582,-1980.01,0.00015068,2]
[419316463,1775153442593,-167.817,0.00015068,2]
[419316464,1775153442602,-881.27,0.00015068,2]
[419316465,1775153442611,-800.0,0.00015068,2]
[419316466,1775153442620,-500.0,0.00015075,2]
[419316467,1775153442629,-151.0,0.00015075,2]
[419316468,1775153442638,-500.0,0.0001513,2]
[419316469,1775153442647,-151.0,0.0001513,2]
[419316470,1775153442656,-2351.0,0.00015136,2]
[419316471,1775153442665,-16910.12195051,0.00015153,2]
[419316472,1775153442675,-500.0,0.00015185,2]
[419316473,1775153442684,-151.0,0.00015185,2]
[419316474,1775153442693,-166.66,0.00015228,2]
[419316475,1775153442702,-500.0,0.0001524,2]
[419316476,1775153442711,-151.0,0.0001524,2]
[419316477,1775153442721,-150.0,0.00015288,2]
[419316478,1775153442730,-150.0,0.00015288,2]
[419316479,1775153442739,-150.0,0.00015288,2]
[419316480,1775153442748,-150.0,0.00015288,2]
[419316481,1775153442759,-150.0,0.00015288,2]
[419316482,1775153442768,-150.0,0.00015288,2]
[419316483,1775153442778,-150.0,0.00015288,2]
[419316484,1775153442787,-212.41443701,0.00015288,2]
[419316485,1775153442797,-150.0,0.00015288,2]
[419316486,1775153442807,-150.00000001,0.00015288,2]
[419316487,1775153442816,-150.0,0.00015288,2]
[419316488,1775153442826,-262.68000001,0.00015288,2]
[419316489,1775153442835,-150.0,0.00015288,2]
[419316490,1775153442844,-1481.23780761,0.00015293,2]
[419316491,1775153442854,-200.0,0.00015293,2]
[419316492,1775153442864,-181.08010149,0.00015293,2]
[419316493,1775153442873,-771.01748645,0.00015293,2]
[419316494,1775153442883,-500.0,0.00015295,2]
[419316495,1775153442892,-151.0,0.00015295,2]
[419316496,1775153442901,-2873.03,0.000153,2]
[419316497,1775153442910,-500.0,0.00015309,2]
[419316498,1775153442919,-9999.99,0.0001531,2]
[419316499,1775153442928,-9999.99,0.0001531,2]
[419316500,1775153442937,-351.34,0.0001531,2]
[419316501,1775153442946,-4999.99,0.0001531,2]
[419316502,1775153442955,-1555.19,0.0001531,2]
[419316503,1775153442965,-9999.99,0.0001531,2]
[419316504,1775153442974,-2175.35,0.0001531,2]
[419316505,1775153442988,-150.99,0.0001531,2]
[419316506,1775153442998,-22934.55,0.0001531,2]
[419316507,1775153443008,-150.99,0.0001531,2]
[419316508,1775153443018,-3292.32,0.0001531,2]
[419316509,1775153443028,-7022.14,0.0001531,2]
[419316510,1775153443038,-999.99,0.0001531,2]
[419316511,1775153443048,-2998.62,0.0001531,2]
[419316512,1775153443058,-499.99,0.0001531,2]
[419316514,1775153443068,-299.99,0.0001531,2]
[419316516,1775153443078,-880.73,0.00015342,2]
[419316517,1775153443088,-798.88224457,0.00015346,2]
[419316518,1775153443098,-1500.0,0.00015346,2]
[419316519,1775153443109,-1061.25077082,0.00015346,2]
[419316520,1775153443118,-161.12,0.00015364,2]
[419316521,1775153443127,-500.0,0.00015373,2]
[419316522,1775153443137,-350.0,0.00015475,2]
[419316523,1775153443147,-1669.0,0.00015496,2]
[419316524,1775153443157,-16910.12195051,0.00015497,2]
[419316525,1775153443167,-211.6236,0.000155,12]
[419316526,1775153443177,-2934.0,0.00015503,2]
[419316527,1775153443187,-3500.0,0.000156,5]
[419316528,1775153443196,-300.0,0.000156,5]
[419316529,1775153443207,-160.0,0.0001568,7]
[419316530,1775153443216,-170.587503,0.0001568,7]
[419316531,1775153443227,-181.175006,0.0001568,7]
[419316532,1775153443237,-164.384323,0.0001568,7]
[419316533,1775153443247,-160.0,0.0001568,7]
[419316534,1775153443257,-585.215747,0.0001568,7]
[419316535,1775153443267,-1010.431494,0.0001568,7]
[419316536,1775153443278,-444.302031,0.0001568,7]
[419316537,1775153443288,-1660.9685,0.000157,2]
[419316538,1775153443301,-7100.0,0.000157,5]
[419316539,1775153443311,-700.0,0.000157,5]
[419316540,1775153443320,-150.0,0.00015712,2]
[419316541,1775153443330,-150.0,0.00015712,2]
[419316542,1775153443340,-150.0,0.00015712,2]
[419316543,1775153443349,-160.0,0.0001572,2]
[419316544,1775153443359,-500.0,0.00015753,2]
[419316545,1775153443370,-306.0,0.000158,2]
[419316546,1775153443380,-10700.0,0.000158,5]
[419316548,1775153443391,-1100.0,0.000158,5]
[419316549,1775153443400,-313.0,0.000158,2]
[419316550,1775153443410,-2873.03,0.0001583,2]
[419316551,1775153443420,-24984.01404667,0.0001584,2]
[419316552,1775153443430,-16910.12195051,0.0001584,2]
[419316553,1775153443440,-1536.04360649,0.00015841,2]
[419316554,1775153443449,-200.0,0.00015841,2]
[419316555,1775153443459,-187.78006525,0.00015841,2]
[419316556,1775153443469,-799.54513345,0.00015841,2]
[419316557,1775153443479,-200.0,0.00015872,2]
[419316558,1775153443493,-500.0,0.00015873,2]
[419316560,1775153443502,-1059.9503,0.00015873,2]
[419316562,1775153443512,-2873.03,0.00015885,2]
[419316563,1775153443521,-500.0,0.0001589,2]
[419316564,1775153443532,-519.17533645,0.0001589,2]
[419316565,1775153443541,-2000.0,0.0001589,2]
[419316566,1775153443551,-2000.0,0.00015894,2]
[419316567,1775153443561,-150.0,0.000159,2]
[419316568,1775153443571,-150.0,0.000159,2]
[419316569,1775153443581,-150.0,0.000159,2]
[419316570,1775153443592,-5000.0,0.000159,2]
[419316571,1775153443601,-150.0,0.000159,2]
[419316572,1775153443611,-14200.0,0.000159,5]
[419316573,1775153443621,-150.0,0.000159,2]
[419316574,1775153443631,-337.61644578,0.000159,2]
[419316575,1775153443641,-1400.0,0.000159,5]
[419316576,1775153443651,-755.0,0.000159,2]
[419316577,1775153443661,-19292.046859,0.000159,2]
[419316578,1775153443671,-150.0,0.000159,2]
[419316579,1775153443681,-198.3901028,0.000159,2]
[419316580,1775153443691,-723.40269756,0.000159,2]
[419316581,1775153443700,-1528.46271437,0.00015901,2]
[419316582,1775153443711,-2934.0,0.00015902,2]
[419316583,1775153443721,-154.78244338,0.00015928,2]
[419316584,1775153443730,-392.0,0.00015958,2]